[Event "Srdja Dragasevic Memorial-A 2024"]
[Site "Cetinje"]
[Date "2024.06.27"]
[Round "7.1"]
[White "Petrov, Nikita"]
[Black "Milanovic, Danilo"]
[Result "1/2-1/2"]
[ECO "B01"]
[WhiteElo "2566"]
[BlackElo "2438"]
[Annotator "TA"]
[PlyCount "53"]
[EventDate "2024.06.23"]
[EventType "swiss"]
[EventCountry "MNE"]
[SourceTitle "playchess.com"]
[Source "ChessBase"]
[SourceQuality "1"]
[TimeControl "40/5400+30:1800+30"]

{[%evp 9,53,43,54,53,45,41,28,33,34,24,31,39,39,40,43,57,51,38,72,10,18,20,18,27,14,20,25,16,44,31,36,28,32,4,0,0,0,0,0,0,0,0,0,-20,-24,-43]} 1. e4 {[%emt 0:00:05]} d5 {[%emt 0:10:36]} 2. exd5 {[%emt 0:00:15]} Qxd5 {[%emt 0:00:08]} 3. Nc3 {[%emt 0:00:12]} Qd6 {[%emt 0:00:10]} 4. d4 {[%emt 0:00:31][%cal Bd2d4,Bd4d5][%mdl 32]} Nf6 {[%emt 0:00:12]} 5. Nf3 {[%emt 0:00:19]} Nc6 {[%emt 0:00:08]} 6. Nb5 {[%emt 0:10:13]} Qd8 {[%emt 0:00:23] [#]} 7. d5 $1 {[%emt 0:18:22]} Nb4 {[%emt 0:00:14][%cal Bc6b4,Bb4a6,Ba6c5][%mdl 32]} (7... Qxd5 $2 {perishes.} 8. Nxc7+ Kd8 9. Nxd5 $18) (7... Nxd5 $2 8. Qxd5 Bg4 9. Bf4 Bxf3 10. gxf3 $18 (10. Qxf3 e5 $18) (10. Nxc7+ Qxc7 11. Qxf3 e5 $14)) 8. c4 {[%emt 0:00:13] White has an edge.} e6 {[%emt 0:00:19]} 9. a3 {[%emt 0:12:45]} Na6 {[%emt 0:00:56][%cal Re6d5]} 10. Qa4 {[%emt 0:03:29][%csl LRa7,LRc7]} c6 {[%emt 0:00:33]} 11. dxc6 {[%emt 0:00:56]} bxc6 {[%emt 0:00:14][%cal Oa6c5] [#] aiming for ...Nc5!} 12. Nc3 {[%emt 0:01:38]} Nc5 {[%emt 0:01:24]} 13. Qc2 {[%emt 0:00:54]} a5 {[%emt 0:00:53]} 14. Be3 {[%emt 0:02:02]} (14. Bf4 $16) 14... Qc7 $11 {[%emt 0:31:37]} 15. Be2 {[%emt 0:06:58]} Be7 {[%emt 0:11:09]} 16. h3 {[%emt 0:03:55]} O-O {[%emt 0:02:20]} 17. O-O {[%emt 0:00:59]} Rb8 {[%emt 0:00:50]} 18. Rab1 {[%emt 0:01:10]} Ncd7 {[%emt 0:01:41]} 19. Rfd1 {[%emt 0:01:50]} Re8 {[%emt 0:03:26]} 20. Nd2 {[%emt 0:03:11]} e5 {[%emt 0:13:17]} 21. Na4 {[%emt 0:03:41]} Nf8 {[%emt 0:01:02]} 22. Bf3 {[%emt 0:02:24]} Ne6 {[%emt 0:00:57]} 23. Ne4 {[%emt 0:00:22]} c5 {[%emt 0:03:37]} 24. Nxf6+ {[%emt 0:02:59]} Bxf6 {[%emt 0:00:37]} 25. Nc3 {[%emt 0:00:37]} Nd4 {[%emt 0:00:14]} 26. Bxd4 {[%emt 0:00:06]} exd4 {[%emt 0:01:29]} 27. Nd5 {[%emt 0:02:04] Weighted Error Value: White=0.08 (flawless) /Black=0.04 (flawless) .  Mistake:       	White=1     	---        Inaccurate:     	White=1     	Black=2      OK:         	White=11    	Black=11     Best:        	White=1     	Black=1} 1/2-1/2

[Event "Srdja Dragasevic Memorial-A 2024"]
[Site "Cetinje"]
[Date "2024.06.27"]
[Round "7.2"]
[White "Mammadova, Narmin"]
[Black "Karthik Venkataraman"]
[Result "1/2-1/2"]
[ECO "C02"]
[WhiteElo "2277"]
[BlackElo "2590"]
[Annotator "TA"]
[PlyCount "111"]
[EventDate "2024.06.23"]
[EventType "swiss"]
[EventCountry "MNE"]
[SourceTitle "playchess.com"]
[Source "ChessBase"]
[SourceQuality "1"]
[TimeControl "40/5400+30:1800+30"]

{[%evp 29,111,-26,-30,-35,-16,-24,0,0,0,0,16,0,0,0,0,0,0,0,0,-8,0,7,10,0,15,-8,-9,-17,-9,-51,-28,-46,-45,-56,-74,-60,-46,-58,-21,-21,0,0,0,0,19,25,353,351,330,0,0,0,29,0,0,0,0,-72,-72,-78,-56,-131,-144,-137,0,0,0,-121,-115,-110,-89,-152,-157,-758,0,0,0,0,0,0,0,0,0,0]} 1. d4 {[%emt 0:02:44]} e6 {[%emt 0:00:33]} 2. e4 {[%emt 0:00:27]} d5 {[%emt 0:00:07]} 3. e5 {[%emt 0:00:29]} c5 {[%emt 0:00:32]} 4. c3 {[%emt 0:00:24]} Nc6 {[%emt 0:00:07]} 5. Nf3 {[%emt 0:00:04]} Qb6 {[%emt 0:01:22]} 6. Na3 {[%emt 0:02:01]} Bd7 {[%emt 0:00:05] C02: French: Advance Variation.} 7. Nc2 {[%emt 0:01:01]} f6 {[%emt 0:00:02]} 8. Bd3 {[%emt 0:07:48]} c4 {[%emt 0:00:13]} 9. Be2 {[%emt 0:00:45]} fxe5 {[%emt 0:00:05]} 10. Nxe5 {[%emt 0:01:43]} Nxe5 {[%emt 0:00:07]} 11. dxe5 {[%emt 0:00:02]} Bc5 {[%emt 0:00:05]} 12. O-O {[%emt 0:02:17]} Ne7 {[%emt 0:00:06]} 13. Bh5+ $146 {[%emt 0:12:35]} ({Predecessor:} 13. Ne3 Qc7 14. Bh5+ g6 15. Bf3 Qxe5 16. Re1 Qc7 17. Bxd5 Bxe3 18. Rxe3 exd5 19. Qd4 {1-0 Chyzy,J (2250)-Luberanski,J (2242) POL-ch U18 Jastrzebia Gora 2023 (5)}) 13... g6 {[%emt 0:00:11]} 14. Bf3 {[%emt 0:01:58]} Nc6 {[%emt 0:09:35]} 15. Qe2 {[%emt 0:13:38]} O-O {[%emt 0:10:41]} 16. Bg4 {[%emt 0:07:47]} Qc7 {[%emt 0:15:41]} 17. Bh6 {[%emt 0:01:38]} Rf7 {[%emt 0:00:14]} 18. Rae1 {[%emt 0:02:12]} Qb6 {[%emt 0:00:05]} 19. Rb1 {[%emt 0:12:54]} Bf8 {[%emt 0:00:31]} 20. Bxf8 {[%emt 0:02:54]} Raxf8 {[%emt 0:00:06]} 21. g3 {[%emt 0:01:45]} h5 {[%emt 0:01:29]} 22. Bh3 {[%emt 0:00:49]} Rf3 {[%emt 0:00:02]} 23. Ne1 {[%emt 0:05:57]} R3f7 $1 {[%emt 0:00:02]} (23... Rxc3 $2 24. Rd1 $18 (24. Qd1 Rd3 $11) (24. Qd1 Rd3 $11)) 24. Nc2 {[%emt 0:03:36]} Kh7 {[%emt 0:00:16]} 25. b3 {[%emt 0:04:45]} cxb3 {[%emt 0:05:16]} 26. Rxb3 {[%emt 0:00:12]} Qc7 {[%emt 0:00:04]} 27. f4 {[%emt 0:02:01]} Na5 {[%emt 0:00:05]} 28. Ra3 {[%emt 0:04:03]} b6 {[%emt 0:00:01]} 29. Rd1 {[%emt 0:03:10]} Kg8 {[%emt 0:01:02]} 30. Qd3 {[%emt 0:01:21]} Rg7 {[%emt 0:00:10]} 31. Kh1 {[%emt 0:01:39]} g5 {[%emt 0:00:33]} 32. Nd4 {[%emt 0:00:33]} g4 $1 {[%emt 0:04:51]} 33. Bg2 {[%emt 0:00:01]} Qc5 {[%emt 0:00:01]} (33... h4 $5) 34. Rxa5 $1 {[%emt 0:00:53]} Qxa5 {[%emt 0:01:27]} 35. f5 {[%emt 0:00:19]} exf5 {[%emt 0:00:20]} 36. e6 {[%emt 0:00:27]} Be8 {[%emt 0:05:12]} 37. Nxf5 {[%emt 0:01:28]} Rg5 $2 {[%emt 0:00:05][%mdl 8192]} (37... Bg6 $6 38. Ne7+ Rxe7 39. Qxg6+ Rg7 40. Qxh5 $18) (37... Qb5 $1 $11 {and Black has nothing to worry.} 38. Qxb5 (38. e7 Rxf5 39. Qxf5 Qe2 $11) 38... Bxb5 39. Nxg7 Kxg7) 38. Ne7+ $18 {[%emt 0:00:25]} Kg7 {[%emt 0:00:05]} 39. Nxd5 $2 {[%emt 0:00:43]} (39. Qe3 $18 d4 40. cxd4) 39... Qc5 $1 $11 {[%emt 0:02:13]} 40. c4 {[%emt 0:00:00]} Qd6 {[%emt 0:00:00]} ({Reject} 40... Re5 $6 41. Qc3 Rff5 42. Be4 $16) 41. Re1 {[%emt 0:12:04]} Rff5 $1 {[%emt 0:21:14]} 42. Qc3+ {[%emt 0:11:57]} Re5 {[%emt 0:00:19]} 43. Nf4 {[%emt 0:00:27] [#]} (43. e7 $11 {remains equal.}) 43... Kg8 $1 $17 {[%emt 0:07:43]} 44. Rf1 {[%emt 0:02:12]} Bc6 {[%emt 0:00:36]} 45. Qc2 {[%emt 0:04:39]} (45. h4 $15 Rgf5 (45... gxh3 46. Bd5 $15) 46. Qc2) 45... Rgf5 $17 {[%emt 0:07:20]} 46. Rd1 {[%emt 0:00:55] [#]} Bxg2+ {[%emt 0:08:34]} (46... h4 $1 $17 {[%cal Rh4h3] Strongly threatening ...h3!} 47. gxh4 Qc5 (47... Bxg2+ 48. Kxg2 Qc6+ 49. Rd5 $11)) 47. Kxg2 $11 {[%emt 0:00:01]} Qc6+ {[%emt 0:00:05]} 48. Kg1 {[%emt 0:00:20]} (48. Rd5 $1 $11) 48... Qc5+ $17 {[%emt 0:00:01]} 49. Kg2 {[%emt 0:00:10]} Qe3 {[%emt 0:00:13]} 50. Rd8+ {[%emt 0:02:34]} (50. h4 $142) 50... Kg7 $17 {[%emt 0:00:02]} 51. Nxh5+ $2 {[%emt 0:00:38]} (51. Qd1 $17 Qe4+ 52. Kg1 Qe1+ (52... Qxc4 53. Qd7+ Kf6 54. Rf8+ Kg5 55. Qg7#) 53. Kg2 Qxd1 54. Rxd1) 51... Rxh5 $2 {[%emt 0:01:56]} (51... Kh6 $19 {( -> ...Qf3+)} 52. Qd2 Qxd2+ (52... Kxh5 $2 53. Rh8+ Kg6 54. Rg8+ Kh7 55. Qxe3 $19) 53. Rxd2 Rxh5 (53... Kxh5 $2 54. h3 $19)) 52. Rg8+ $1 $11 {[%emt 0:00:04]} Kxg8 {[%emt 0:06:59]} 53. Qg6+ {[%emt 0:00:01]} Kh8 {[%emt 0:00:07]} 54. Qf6+ {[%emt 0:00:17]} Kh7 {[%emt 0:00:06]} 55. Qf7+ {[%emt 0:00:03]} Kh8 {[%emt 0:00:05]} 56. Qf6+ {[%emt 0:00:03]} 1/2-1/2

[Event "Srdja Dragasevic Memorial-A 2024"]
[Site "Cetinje"]
[Date "2024.06.27"]
[Round "7.3"]
[White "Saraci, Nderim"]
[Black "Mammadov, Zaur"]
[Result "1/2-1/2"]
[ECO "C14"]
[WhiteElo "2449"]
[BlackElo "2426"]
[Annotator "TA"]
[PlyCount "64"]
[EventDate "2024.06.23"]
[EventType "swiss"]
[EventCountry "MNE"]
[SourceTitle "playchess.com"]
[Source "ChessBase"]
[SourceQuality "1"]
[TimeControl "40/5400+30:1800+30"]

{[%evp 14,64,28,13,25,9,18,18,14,22,21,16,25,-11,-12,-29,11,0,0,0,147,63,62,43,54,50,48,26,63,0,12,11,7,0,0,0,0,0,0,0,0,0,0,0,0,0,0,0,0,0,0,-14,0]} 1. e4 {[%emt 1:31:00][%cal Be2e4,Be4e5][%mdl 32]} e6 {[%emt 0:07:21]} 2. d4 {[%emt 0:00:00]} d5 {[%emt 0:00:04]} 3. Nc3 {[%emt 0:00:00]} Nf6 {[%emt 0:00:17]} 4. Bg5 {[%emt 0:00:00]} Be7 {[%emt 0:00:06]} 5. e5 {[%emt 0:00:00]} Nfd7 {[%emt 0:00:04]} 6. h4 {[%emt 0:00:00]} h6 {[%emt 0:00:01]} 7. Bxe7 {[%emt 0:00:00]} Qxe7 {[%emt 0:00:02]} 8. f4 {[%emt 0:00:00][%cal Of4f5]} a6 {[%emt 0:01:21]} 9. Nf3 {[%emt 0:00:00]} c5 {[%emt 0:00:11]} 10. Qd2 {[%emt 0:00:00]} Nc6 {[%emt 0:00:02]} 11. dxc5 {[%emt 0:00:00]} Nxc5 {[%emt 0:00:16]} 12. O-O-O {[%emt 0:00:00]} b5 {[%emt 0:00:26]} 13. Bd3 {[%emt 0:00:00]} O-O {[%emt 0:00:16]} (13... b4 {simplifies} 14. Ne2 a5 15. Ned4 Nxd4 16. Nxd4 O-O) 14. Kb1 {[%emt 0:00:00]} Bb7 {[%emt 0:07:24]} (14... b4 {simplifies} 15. Ne2 a5 16. Nfd4 Nxd4 17. Nxd4 Qa7) 15. f5 {[%emt 0:00:00][%cal Of5f6] [#] Black must now prevent f6!} (15. Ne2 {simplifies} d4 16. Nfxd4 Rfd8 17. Nxc6 Bxc6 18. Rh2) 15... Nxd3 {[%emt 0:19:14]} 16. f6 {[%emt 0:00:00]} Qb4 {[%emt 0:03:47]} (16... gxf6 $11 17. exf6 (17. cxd3 fxe5 18. Qxh6 f6 $15) 17... Qxf6 18. cxd3 Kh7) 17. cxd3 {[%emt 0:00:00]} (17. Qxd3 $16 {[%cal Of3g5] aiming for Ng5!} gxf6 18. exf6) 17... d4 $14 {[%emt 0:11:42]} 18. fxg7 {[%emt 0:00:00]} (18. Ne4 {simplifies} Qxd2 19. Rxd2 Nb4 20. Re1) 18... Kxg7 {[%emt 0:01:03]} 19. Ne4 {[%emt 0:00:00]} Qxd2 {[%emt 0:05:58]} 20. Rxd2 {[%emt 0:00:00]} Rad8 {[%emt 0:02:16]} 21. Rh3 {[%emt 0:00:00]} (21. Nc5 $14 Ba8 22. Nxa6) 21... Ne7 {[%emt 0:07:20] The position is equal.} 22. Rg3+ {[%emt 0:00:00][%cal Bh3g3,Bg3g4,Bg4f4,Bf4f3][%mdl 32]} Kh8 {[%emt 0:00:12]} 23. Rg4 {[%emt 0:00:00]} Rg8 {[%emt 0:06:34]} 24. Rf4 {[%emt 0:00:00]} (24. Nd6 Rxg4 25. Nxf7+ (25. Nxb7 $2 {perishes.} Rdg8 $19) 25... Kg7 26. Nxd8 Bd5 $19) 24... f5 {[%emt 0:08:54]} 25. Nc5 {[%emt 0:00:22][%csl LRb7,LRd4,LRe6]} (25. exf6 $5 Nd5 $8 26. f7 Nxf4 27. fxg8=N Kxg8 28. Ne5 $11) 25... Bxf3 {[%emt 0:06:15]} 26. Rxf3 {[%emt 0:00:24]} Rd5 {[%emt 0:00:21][%csl LRc5,LRe5]} 27. Nxe6 {[%emt 0:01:02]} ({Much worse is} 27. Nxa6 Rxe5 28. Kc2 Nd5 $17) 27... Rxe5 {[%emt 0:00:15]} 28. Nxd4 {[%emt 0:00:33]} Rg4 {[%emt 0:01:02][%csl LRd4,LRh4]} 29. Nc2 {[%emt 0:03:22]} Rxh4 {[%emt 0:00:32] [#] Hoping for ...Rh1+.} 30. a3 {[%emt 0:00:11]} Kg7 {[%emt 0:05:32]} 31. d4 {[%emt 0:02:29]} Rd5 {[%emt 0:00:39]} 32. Rdf2 {[%emt 0:01:51]} Re4 {[%emt 0:01:24] Weighted Error Value: White=0.16 (very precise) /Black=0.12 (very precise) .  Mistake:       	White=2     	Black=1      Inaccurate:     	White=1     	Black=2      OK:         	White=10    	Black=10     Best:        	---       	Black=3} 1/2-1/2

[Event "Srdja Dragasevic Memorial-A 2024"]
[Site "Cetinje"]
[Date "2024.06.27"]
[Round "7.4"]
[White "Djukic, Nikola"]
[Black "Damljanovic, Branko"]
[Result "1-0"]
[ECO "C79"]
[WhiteElo "2532"]
[BlackElo "2364"]
[Annotator "TA"]
[PlyCount "107"]
[EventDate "2024.06.23"]
[EventType "swiss"]
[EventCountry "MNE"]
[SourceTitle "playchess.com"]
[Source "ChessBase"]
[SourceQuality "1"]
[TimeControl "40/5400+30:1800+30"]

{[%evp 19,107,17,20,20,26,7,14,19,17,14,22,13,36,33,47,21,46,22,37,9,46,47,75,89,122,127,125,122,134,130,131,131,125,117,131,139,142,104,137,156,156,156,156,156,156,154,145,145,222,220,197,164,175,175,175,168,168,168,161,161,176,169,173,165,272,266,289,275,316,266,494,480,498,491,536,535,495,535,506,514,750,734,841,833,812,624,628,623,609,593]} 1. e4 {[%emt 0:00:03]} e5 {[%emt 0:05:21]} 2. Nf3 {[%emt 0:00:14]} Nc6 {[%emt 0:00:07]} 3. Bb5 {[%emt 0:00:17]} a6 {[%emt 0:00:08]} 4. Ba4 {[%emt 0:00:06]} d6 {[%emt 0:01:44]} 5. c3 {[%emt 0:01:59]} Bd7 {[%emt 0:00:14]} 6. d4 {[%emt 0:00:20]} g6 {[%emt 0:01:01]} 7. O-O {[%emt 0:01:41]} Bg7 {[%emt 0:00:07]} 8. Re1 {[%emt 0:00:41]} b5 {[%emt 0:01:07]} 9. Bb3 {[%emt 0:01:47]} Nf6 {[%emt 0:01:24]} 10. Be3 {[%emt 0:01:26] C79: Ruy Lopez: Steinitz-type lines with 3...a6 4 Ba4 Nf6 5 0-0 d6.} O-O {[%emt 0:01:07]} 11. Nbd2 {[%emt 0:00:31]} Qe7 {[%emt 0:03:14]} 12. h3 {[%emt 0:04:34]} Na5 {[%emt 0:11:27]} 13. Bc2 {[%emt 0:00:32]} (13. Bg5 {with more complications.} h6 14. Bh4 Rfc8 15. Bc2) 13... c5 {[%emt 0:08:20]} 14. d5 {[%emt 0:15:17]} Rfc8 $146 {[%emt 0:08:59]} ({Predecessor:} 14... Nh5 15. a4 Rfb8 16. axb5 axb5 17. Qe2 Nf4 18. Qf1 c4 19. Ra3 Nb7 20. Rea1 Qd8 {½-½ Salamon,W (2335)-Troger,D (2330) AUT-chT15 email 2018 [3]}) 15. b3 {[%emt 0:14:18]} Ne8 {[%emt 0:04:21]} 16. Nf1 {[%emt 0:01:05]} Nb7 {[%emt 0:04:31]} 17. Ng3 {[%emt 0:11:56]} Qf8 {[%emt 0:07:01]} 18. Rc1 {[%emt 0:06:17]} a5 {[%emt 0:07:33]} 19. Rf1 {[%emt 0:08:16]} b4 {[%emt 0:03:35]} 20. Nd2 {[%emt 0:02:01]} bxc3 {[%emt 0:03:33]} 21. Nc4 {[%emt 0:00:07]} Bb5 {[%emt 0:00:48]} 22. Ne2 {[%emt 0:02:44]} Bxc4 {[%emt 0:02:44]} 23. bxc4 {[%emt 0:00:07]} Bh6 {[%emt 0:00:04]} 24. Ba4 {[%emt 0:05:55]} (24. Nxc3 Bxe3 25. fxe3 Nd8 $16) 24... Bxe3 {[%emt 0:01:23]} 25. fxe3 {[%emt 0:00:06]} Nd8 {[%emt 0:00:28]} 26. Nxc3 {[%emt 0:00:53]} (26. Rxc3 Rab8) 26... Qe7 {[%emt 0:02:23]} 27. Bxe8 {[%emt 0:05:43]} Qxe8 {[%emt 0:00:02]} 28. Qf3 {[%emt 0:00:09]} Rc7 {[%emt 0:05:41]} 29. Qf6 {[%emt 0:01:52]} Nb7 {[%emt 0:00:11]} 30. a4 {[%emt 0:01:10]} Qd8 {[%emt 0:01:42]} 31. Rb1 {[%emt 0:02:28]} Qxf6 {[%emt 0:01:07]} 32. Rxf6 {[%emt 0:00:09]} Kg7 {[%emt 0:00:03]} 33. Rf2 {[%emt 0:00:07]} Re8 {[%emt 0:05:43]} (33... Rd7 $16 34. Rfb2 Ra7) 34. Rb6 $18 {[%emt 0:01:04]} Rd7 {[%emt 0:00:15]} 35. Ra6 {[%emt 0:03:32]} h5 {[%emt 0:00:26]} 36. Ra7 {[%emt 0:00:45]} h4 {[%emt 0:00:51]} 37. Kh2 {[%emt 0:04:50]} Ree7 {[%emt 0:00:26]} 38. Rf1 {[%emt 0:00:20]} Kh6 {[%emt 0:02:00]} 39. Nb5 {[%emt 0:02:40]} Kg5 {[%emt 0:00:25]} 40. g4 {[%emt 0:00:00]} hxg3+ {[%emt 0:00:00]} 41. Kxg3 {[%emt 0:01:06]} Kh6 {[%emt 0:07:45]} (41... f5 $142 42. h4+ Kf6) 42. Ra8 $18 {[%emt 0:09:51]} Kg7 {[%emt 0:00:27]} 43. h4 {[%emt 0:00:15]} f6 {[%emt 0:00:38]} 44. Kg4 {[%emt 0:00:11]} Nd8 $2 {[%emt 0:00:30]} (44... Rf7 {is a better defense.} 45. h5 Nd8 46. Rxa5 gxh5+ 47. Kxh5 Rf8) 45. Rxa5 $18 {[%emt 0:01:03]} Nf7 {[%emt 0:00:04]} 46. Ra6 {[%emt 0:00:49]} Re8 {[%emt 0:00:24]} 47. Kg3 {[%emt 0:03:22]} Rh8 {[%emt 0:02:56]} 48. a5 {[%emt 0:01:16]} g5 {[%emt 0:03:39]} 49. Rh1 {[%emt 0:00:38]} f5 {[%emt 0:07:05]} 50. exf5 {[%emt 0:00:23]} e4 {[%emt 0:00:02]} 51. Rb6 {[%emt 0:06:08]} Nh6 {[%emt 0:06:43]} 52. Rf1 {[%emt 0:01:17]} (52. Nxd6 Rxd6 53. Rb7+ Nf7 $17) 52... gxh4+ {[%emt 0:00:25]} 53. Kh3 {[%emt 0:00:13]} ({Stronger than} 53. Kxh4 Kf6 (53... Nxf5+ 54. Kg5 $14) 54. Kg3 (54. Nxd6 $2 {gets mated.} Nxf5+ 55. Kg4 Rh4#) (54. Rxd6+ $2 Rxd6 55. Kg3 Rg8+ 56. Kf2 Ra6 $19) 54... Nxf5+ 55. Kf2 Ke5 $11) 53... Nf7 {[%emt 0:01:09]} 54. a6 {[%emt 0:04:05]} 1-0

[Event "Srdja Dragasevic Memorial-A 2024"]
[Site "Cetinje"]
[Date "2024.06.27"]
[Round "7.5"]
[White "Sukovic, Andrej"]
[Black "Tadic, Stefan"]
[Result "1-0"]
[ECO "C55"]
[WhiteElo "2350"]
[BlackElo "2421"]
[Annotator "RC"]
[PlyCount "47"]
[EventDate "2024.06.23"]
[EventType "swiss"]
[EventCountry "MNE"]
[SourceTitle "playchess.com"]
[Source "ChessBase"]
[SourceQuality "1"]
[TimeControl "40/5400+30:1800+30"]

1. e4 {[%emt 0:07:05]} e5 {[%emt 0:00:06]} 2. Nf3 {[%emt 0:00:04]} Nc6 {[%emt 0:00:06]} 3. Bc4 {[%emt 0:00:04]} Nf6 {[%emt 0:00:07]} 4. d3 {[%emt 0:00:04]} a6 {[%emt 0:00:03]} 5. c3 {[%emt 0:02:19]} d5 {[%emt 0:08:25]} 6. exd5 {[%emt 0:00:11]} Nxd5 {[%emt 0:00:05]} 7. O-O {[%emt 0:04:44]} Be7 {[%emt 0:07:52]} 8. a4 {[%emt 0:09:30]} O-O {[%emt 0:04:50]} 9. a5 {[%emt 0:00:09]} Bg4 {[%emt 0:06:05]} 10. h3 {[%emt 0:00:15]} Bh5 {[%emt 0:00:21]} 11. Nbd2 {[%emt 0:01:13]} Qd7 {[%emt 0:04:16]} 12. Nxe5 {[%emt 0:08:46]} Qf5 {[%emt 0:02:50]} 13. Ng4 {[%emt 0:01:18]} Rad8 {[%emt 0:24:42]} 14. Ne4 {[%emt 0:11:40]} Qd7 {[%emt 0:05:25]} 15. Nh6+ {[%emt 0:10:41]} gxh6 {[%emt 0:00:20]} 16. Qxh5 {[%emt 0:00:04]} f5 {[%emt 0:08:16]} 17. Bxh6 {[%emt 0:00:25]} Rf7 {[%emt 0:00:02]} 18. Ng5 {[%emt 0:01:45]} Bxg5 {[%emt 0:00:05]} 19. Bxg5 {[%emt 0:01:29]} Nce7 {[%emt 0:01:23]} 20. Rae1 {[%emt 0:01:57]} c6 {[%emt 0:00:11]} 21. Bxe7 {[%emt 0:02:35]} Rxe7 {[%emt 0:00:04]} 22. Bxd5+ {[%emt 0:00:04]} cxd5 {[%emt 0:00:05]} 23. Rxe7 {[%emt 0:00:06]} Qxe7 {[%emt 0:00:03]} 24. Qxf5 {[%emt 0:00:05]} 1-0

[Event "Srdja Dragasevic Memorial-A 2024"]
[Site "Cetinje"]
[Date "2024.06.27"]
[Round "7.6"]
[White "Pecurica, Milos"]
[Black "Kalezic, Blazo"]
[Result "1/2-1/2"]
[ECO "D23"]
[WhiteElo "2338"]
[BlackElo "2398"]
[Annotator "RC"]
[PlyCount "27"]
[EventDate "2024.06.23"]
[EventType "swiss"]
[EventCountry "MNE"]
[SourceTitle "playchess.com"]
[Source "ChessBase"]
[SourceQuality "1"]
[TimeControl "40/5400+30:1800+30"]

1. d4 {[%emt 0:00:14]} d5 {[%emt 0:00:11]} 2. c4 {[%emt 0:00:06]} dxc4 {[%emt 0:00:07]} 3. Nf3 {[%emt 0:02:01]} Nf6 {[%emt 0:00:59]} 4. Qa4+ {[%emt 0:01:01]} c6 {[%emt 0:03:40]} 5. Qxc4 {[%emt 0:00:06]} Bg4 {[%emt 0:00:23]} 6. Nbd2 {[%emt 0:03:15]} Nbd7 {[%emt 0:02:37]} 7. h3 {[%emt 0:04:38]} Bxf3 {[%emt 0:00:10]} 8. Nxf3 {[%emt 0:00:14]} e6 {[%emt 0:01:19]} 9. g3 {[%emt 0:01:13]} Nb6 {[%emt 0:11:16]} 10. Qd3 {[%emt 0:04:55]} Bb4+ {[%emt 0:02:24]} 11. Bd2 {[%emt 0:00:07]} Bxd2+ {[%emt 0:00:45]} 12. Nxd2 {[%emt 0:01:59]} O-O {[%emt 0:01:35]} 13. Bg2 {[%emt 0:00:40]} Qd6 {[%emt 0:07:46]} 14. O-O {[%emt 0:08:35]} 1/2-1/2

[Event "Srdja Dragasevic Memorial-A 2024"]
[Site "Cetinje"]
[Date "2024.06.27"]
[Round "7.7"]
[White "Vujovic, Savo"]
[Black "Yaksin, Oleg"]
[Result "0-1"]
[ECO "B69"]
[WhiteElo "2230"]
[BlackElo "2389"]
[Annotator "RC"]
[PlyCount "129"]
[EventDate "2024.06.23"]
[EventType "swiss"]
[EventCountry "MNE"]
[SourceTitle "playchess.com"]
[Source "ChessBase"]
[SourceQuality "1"]
[TimeControl "40/5400+30:1800+30"]

1. e4 {[%emt 0:00:22]} c5 {[%emt 0:09:11]} 2. Nf3 {[%emt 0:00:12]} d6 {[%emt 0:00:10]} 3. d4 {[%emt 0:00:06]} cxd4 {[%emt 0:00:06]} 4. Nxd4 {[%emt 0:00:05]} Nf6 {[%emt 0:00:03]} 5. Nc3 {[%emt 0:00:06]} Nc6 {[%emt 0:00:03]} 6. Bg5 {[%emt 0:00:07]} e6 {[%emt 0:00:04]} 7. Qd2 {[%emt 0:00:06]} a6 {[%emt 0:00:05]} 8. O-O-O {[%emt 0:00:13]} Bd7 {[%emt 0:00:15]} 9. f4 {[%emt 0:00:56]} Be7 {[%emt 0:00:15]} 10. Nf3 {[%emt 0:00:54]} b5 {[%emt 0:00:25]} 11. Bxf6 {[%emt 0:00:26]} gxf6 {[%emt 0:00:07]} 12. f5 {[%emt 0:01:08]} Qa5 {[%emt 0:18:26]} 13. Kb1 {[%emt 0:16:36]} h5 {[%emt 0:01:07]} 14. Bd3 {[%emt 0:06:30]} Rc8 {[%emt 0:08:43]} 15. fxe6 {[%emt 0:15:38]} fxe6 {[%emt 0:00:02]} 16. Rhf1 {[%emt 0:04:41]} Qb6 {[%emt 0:07:27]} 17. Ne2 {[%emt 0:10:44]} Qc5 {[%emt 0:14:15]} 18. Nf4 {[%emt 0:10:07]} Rg8 {[%emt 0:00:42]} 19. g3 {[%emt 0:08:51]} Kd8 {[%emt 0:07:54]} 20. Rc1 {[%emt 0:03:07]} b4 {[%emt 0:18:29]} 21. c3 {[%emt 0:04:05]} Rb8 {[%emt 0:07:22]} 22. cxb4 {[%emt 0:04:58]} Qxb4 {[%emt 0:00:07]} 23. Qxb4 {[%emt 0:00:19]} Rxb4 {[%emt 0:01:27]} 24. Bc4 {[%emt 0:00:57]} Rxc4 {[%emt 0:02:35]} 25. Rxc4 {[%emt 0:00:04]} Ne5 {[%emt 0:00:24]} 26. Rc3 {[%emt 0:00:40]} Ng6 {[%emt 0:00:59]} 27. Nd4 {[%emt 0:03:12]} Nxf4 {[%emt 0:02:04]} 28. gxf4 {[%emt 0:00:04]} Rg2 {[%emt 0:00:37]} 29. Rc2 {[%emt 0:02:02]} Rg4 {[%emt 0:00:02]} 30. f5 {[%emt 0:02:50]} e5 {[%emt 0:00:29]} 31. Ne6+ {[%emt 0:00:11]} Ke8 {[%emt 0:00:01]} 32. Re1 {[%emt 0:00:23]} Bd8 {[%emt 0:00:38]} 33. b3 {[%emt 0:01:52]} Ba5 {[%emt 0:00:29]} 34. Ree2 {[%emt 0:00:59]} Bb5 {[%emt 0:00:47]} 35. Re3 {[%emt 0:01:55]} Bb6 {[%emt 0:00:39]} 36. Re1 {[%emt 0:01:37]} Bd3 {[%emt 0:00:12]} 37. Kb2 {[%emt 0:00:16]} Bxc2 {[%emt 0:00:48]} 38. Kxc2 {[%emt 0:00:04]} Rg2+ {[%emt 0:00:02]} 39. Kd3 {[%emt 0:00:34]} Rxh2 {[%emt 0:01:01]} 40. Rc1 {[%emt 0:00:00]} Rh3+ {[%emt 0:00:00]} 41. Kc4 {[%emt 0:01:45]} Kd7 {[%emt 0:08:13]} 42. Nf8+ {[%emt 0:01:39]} Kc6 {[%emt 0:01:12]} 43. Ng6 {[%emt 0:15:13]} Re3 {[%emt 0:02:47]} 44. b4 {[%emt 0:01:13]} h4 {[%emt 0:04:35]} 45. a4 {[%emt 0:01:08]} h3 {[%emt 0:03:36]} 46. b5+ {[%emt 0:01:25]} axb5+ {[%emt 0:00:10]} 47. axb5+ {[%emt 0:00:03]} Kd7 {[%emt 0:00:40]} 48. Nf8+ {[%emt 0:01:29]} Ke8 {[%emt 0:00:02]} 49. Ne6 {[%emt 0:00:07]} h2 {[%emt 0:03:57]} 50. Rh1 {[%emt 0:03:17]} Re2 {[%emt 0:00:43]} 51. Kd5 {[%emt 0:00:18]} Ke7 {[%emt 0:00:28]} 52. Kc6 {[%emt 0:00:40]} Bg1 {[%emt 0:00:24]} 53. Nc7 {[%emt 0:00:22]} Rxe4 {[%emt 0:04:51]} 54. Nd5+ {[%emt 0:00:16]} Kf7 {[%emt 0:00:18]} 55. b6 {[%emt 0:00:58]} Rc4+ {[%emt 0:00:48]} 56. Kxd6 {[%emt 0:00:12]} Rc2 {[%emt 0:00:52]} 57. b7 {[%emt 0:01:51]} Ba7 {[%emt 0:00:09]} 58. Nb4 {[%emt 0:01:57]} Bb8+ {[%emt 0:04:13]} 59. Kd5 {[%emt 0:00:28]} Rd2+ {[%emt 0:00:28]} 60. Kc4 {[%emt 0:02:57]} e4 {[%emt 0:00:01]} 61. Nc6 {[%emt 0:03:58]} Bg3 {[%emt 0:00:04]} 62. b8=Q {[%emt 0:01:18]} Bxb8 {[%emt 0:00:01]} 63. Nxb8 {[%emt 0:00:06]} e3 {[%emt 0:00:05]} 64. Kc3 {[%emt 0:00:34]} Rg2 {[%emt 0:00:52]} 65. Kd4 {[%emt 0:01:49]} 0-1